fUSD/lending_fUSD_20260227
["ID","MTS","AMOUNT","RATE_DAILY","PERIOD"]
[406754170,1772157043397,-500.0,0.00017099,2]
[406754171,1772157043406,-189.804718,0.00017099,2]
[406754172,1772157043415,-326.23592954,0.00017154,2]
[406754173,1772157043426,-504.0,0.00017213,3]
[406754174,1772157043435,-10000.0,0.00017281,2]
[406754175,1772157043633,-350.0,0.00017282,2]
[406754176,1772157043643,-160.0,0.0001736,2]
[406754177,1772157043652,-2844.0,0.0001736,2]
[406754178,1772157043662,-845.0,0.0001736,2]
[406754179,1772157043671,-160.0,0.0001736,2]
[406754180,1772157043680,-1258.0,0.00017388,2]
[406754181,1772157043690,-1854.0,0.00017388,2]
[406754182,1772157043699,-173.95657067,0.000174,7]
[406754183,1772157043708,-160.0,0.000174,7]
[406754184,1772157043718,-350.0,0.00017596,2]
[406754185,1772157043727,-160.0,0.0001768,2]
[406754186,1772157043736,-160.0,0.0001768,2]
[406754187,1772157043746,-5832.8299848,0.000177,2]
[406754188,1772157043755,-3498.0,0.000177,2]
[406754189,1772157043765,-1041.0,0.000177,2]
[406754190,1772157043774,-1340.0,0.000177,2]
[406754191,1772157043784,-619.04,0.000177,2]
[406754192,1772157043793,-1280.069,0.000177,2]
[406754193,1772157043802,-413.876,0.000177,2]
[406754194,1772157043812,-4573.0,0.000177,2]
[406754195,1772157043821,-500.0,0.00017808,2]
[406754196,1772157043830,-500.0,0.00017808,2]
[406754197,1772157043839,-500.0,0.00017808,2]
[406754198,1772157043848,-500.0,0.00017808,2]
[406754199,1772157043858,-500.0,0.00017808,2]
[406754200,1772157043867,-500.0,0.00017808,2]
[406754201,1772157043877,-500.0,0.00017808,2]
[406754202,1772157043886,-500.0,0.00017808,2]
[406754203,1772157043895,-500.0,0.00017808,2]
[406754204,1772157043905,-500.0,0.00017808,2]
[406754205,1772157043914,-232.35206672,0.00017808,2]
[406754206,1772157043923,-500.0,0.00017808,2]
[406754207,1772157043932,-500.0,0.00017808,2]
[406754208,1772157043942,-800.0,0.00017808,2]
[406754209,1772157043951,-168.0,0.00017815,2]
[406754210,1772157043960,-884.46456,0.0001782,2]
[406754211,1772157043970,-884.46456,0.0001782,2]
[406754212,1772157043979,-884.46457,0.0001782,2]
[406754213,1772157043989,-884.46456,0.0001782,2]
[406754214,1772157043998,-884.46456,0.0001782,2]
[406754215,1772157044008,-884.46456,0.0001782,2]
[406754216,1772157044017,-500.0,0.00017863,2]
[406754217,1772157044026,-5800.0,0.00017874,2]
[406754218,1772157044036,-168.0,0.00017883,2]
[406754219,1772157044045,-5800.0,0.00017883,2]
[406754220,1772157044054,-11849.06323003,0.0001789,2]
[406754221,1772157044064,-5800.0,0.00017891,2]
[406754222,1772157044074,-151.0,0.00017897,2]
[406754223,1772157044084,-5800.0,0.000179,2]
[406754224,1772157044094,-12826.65252137,0.000179,2]
[406754225,1772157044298,-17666.29664224,0.000179,2]
[406754226,1772157044308,-297.06202,0.000179,2]
[406754227,1772157044317,-3460.87701022,0.000179,2]
[406754228,1772157044326,-157.15643037,0.000179,2]
[406754229,1772157044335,-500.0,0.00017918,2]
[406754230,1772157044344,-212.0,0.00017939,2]
[406754231,1772157044353,-504.86250274,0.00017972,2]
[406754232,1772157044362,-500.0,0.00017973,2]
[406754233,1772157044371,-500.0,0.00017973,2]
[406754234,1772157044380,-501.955399,0.00017973,2]
[406754235,1772157044390,-500.0,0.00017982,2]
[406754236,1772157044399,-500.0,0.00017982,2]
[406754237,1772157044409,-435.6586241,0.0001799,2]
[406754238,1772157044418,-435.6586241,0.0001799,2]
[406754239,1772157044427,-25000.0,0.00017991,3]
[406754240,1772157044436,-154.64407818,0.00017997,2]
[406754241,1772157044446,-500.0,0.00017999,2]
[406754242,1772157044455,-500.0,0.00017999,2]
[406754243,1772157044464,-500.0,0.00017999,2]
[406754244,1772157044474,-500.0,0.00017999,2]
[406754245,1772157044484,-500.0,0.00017999,2]
[406754246,1772157044493,-500.0,0.00017999,2]
[406754247,1772157044502,-500.0,0.00017999,2]
[406754248,1772157044512,-255.54529588,0.00017999,2]
[406754249,1772157044522,-309.86847698,0.00017999,2]
[406754250,1772157044532,-668.68307809,0.00017999,2]
[406754251,1772157044544,-2364.96100118,0.00017999,2]
[406754252,1772157044554,-300.0,0.00017999,2]
[406754253,1772157044564,-666.0,0.00017999,2]
[406754254,1772157044574,-300.0,0.00017999,2]
[406754255,1772157044583,-150.0,0.00017999,2]
[406754256,1772157044593,-156.22838248,0.00017999,2]
[406754257,1772157044603,-142259.57052209,0.00018,2]
[406754258,1772157044615,-369437.49350235,0.00018,2]
[406754259,1772157044626,-841.41446949,0.00018,2]
[406754260,1772157044708,-582.60867176,0.000177,2]
[406754261,1772157044719,-269.4242826,0.000177,2]
[406754262,1772157044731,-1603.96704564,0.000177,2]
[406754263,1772157044740,-382.73045436,0.00018,2]
[406754264,1772157044755,-1209.29,0.00018,2]
[406754265,1772157044769,-850.10682554,0.00018,2]
[406754266,1772157044795,-1690.0,0.00018,2]
[406754267,1772157045026,-89540.8234,8.377e-05,2]
[406754268,1772157045038,-10831.15308593,0.00018,2]
[406754269,1772157045091,-221.86082602,0.00018,2]
[406754283,1772157045501,-760.31037881,0.0001799,2]
[406754284,1772157045510,-1880.30962119,0.00018,2]
[406754295,1772157521306,2966.52,4.518e-05,2]
[406754296,1772157521509,2731.94105451,4.712e-05,2]
[406754297,1772157521531,234.57894549,4.712e-05,2]
[406754298,1772157521711,2966.52,4.907e-05,2]
[406754299,1772157521915,2966.52,5.101e-05,2]
[406754300,1772157522173,2966.52,5.296e-05,2]
[406754301,1772157522378,865.87105451,5.491e-05,2]
[406754302,1772157522401,2100.64894549,5.491e-05,2]
[406754303,1772157522586,2966.52,5.685e-05,2]
[406754304,1772157522796,2966.52,5.88e-05,2]
[406754305,1772157522998,1966.32105451,6.074e-05,2]
[406754306,1772157523021,1000.19894549,6.074e-05,2]
[406754307,1772157523219,2966.52,6.269e-05,2]
[406754308,1772157523413,2966.52,6.463e-05,2]
[406754312,1772157736008,161.85,5.521e-05,2]
[406754313,1772157736217,161.85,6.441e-05,2]
[406754341,1772158231501,-240.24,6.6e-05,2]
[406754342,1772158231511,-159.76,6.6e-05,2]
[406754343,1772158231523,-47.24,6.6e-05,2]
[406754344,1772158231533,-1233.18,6.628e-05,2]
[406754345,1772158231545,-250.0,6.629e-05,2]
[406754346,1772158231556,-2966.52,6.658e-05,2]
[406754347,1772158231566,-300.0,6.702e-05,2]
[406754348,1772158231576,-1200.0,6.702e-05,2]
[406754349,1772158231585,-10067.01,6.703e-05,2]
[406754350,1772158231594,-250.0,6.724e-05,2]
[406754351,1772158231604,-2966.52,6.852e-05,2]
[406754352,1772158231614,-5513.8,6.89e-05,2]
[406754353,1772158231623,-2966.52,7.047e-05,2]
[406754354,1772158231633,-166.66,7.22e-05,2]
[406754355,1772158231643,-2966.52,7.242e-05,2]
[406754356,1772158231654,-250.0,7.26e-05,2]
[406754357,1772158231664,-5000.0,7.26e-05,2]
[406754358,1772158231675,-161.85,7.361e-05,2]
[406754359,1772158231684,-420.0,7.372e-05,2]
[406754360,1772158231694,-1680.0,7.372e-05,2]
[406754361,1772158231704,-2966.52,7.436e-05,2]
[406754362,1772158231713,-1233.18,7.456e-05,2]
[406754363,1772158231723,-166.66,7.459e-05,2]
[406754364,1772158231732,-1618.0,7.507e-05,2]
[406754365,1772158231742,-150.0,7.519e-05,2]
[406754366,1772158231751,-11393.20238194,7.52e-05,2]
[406754367,1772158231761,-500.0,7.53e-05,2]
[406754368,1772158231770,-500.0,7.53e-05,2]
[406754369,1772158231781,-394.53972249,7.53e-05,2]
[406754370,1772158231790,-1265.18903146,7.53e-05,2]
[406754371,1772158231800,-1265.18903146,7.53e-05,2]
[406754372,1772158231809,-500.0,7.53e-05,2]
[406754373,1772158231818,-156.55676924,7.53e-05,2]
[406754374,1772158231827,-1265.18903146,7.53e-05,2]
[406754375,1772158231836,-235.50645071,7.53e-05,2]
[406754376,1772158231845,-1265.18903146,7.53e-05,2]
[406754377,1772158231854,-1265.18903146,7.53e-05,2]
[406754378,1772158231863,-1265.18903146,7.53e-05,2]
[406754379,1772158231873,-1265.18903146,7.53e-05,2]
[406754380,1772158231882,-1265.18903146,7.53e-05,2]
[406754381,1772158231892,-1265.18903146,7.53e-05,2]
[406754382,1772158231901,-1265.18903146,7.53e-05,2]
[406754383,1772158231910,-1265.18903146,7.53e-05,2]
[406754384,1772158231919,-1265.18903146,7.53e-05,2]
[406754385,1772158231929,-1265.18903146,7.53e-05,2]
[406754387,1772158231938,-1265.18903146,7.53e-05,2]
[406754389,1772158231946,-1265.18903146,7.53e-05,2]
[406754391,1772158231956,-1265.18903146,7.53e-05,2]
[406754393,1772158231965,-1265.18903146,7.53e-05,2]
[406754395,1772158231974,-1265.18903146,7.53e-05,2]
[406754397,1772158231983,-1265.18903146,7.53e-05,2]
[406754399,1772158231992,-1265.18903146,7.53e-05,2]
[406754401,1772158232002,-1265.18903146,7.53e-05,2]
[406754403,1772158232011,-1265.18903146,7.53e-05,2]
[406754405,1772158232020,-1098.1020457,7.53e-05,2]
[406754407,1772158232032,-167.08698576,7.53e-05,2]
[406754409,1772158232041,-1265.18903146,7.53e-05,2]
[406754411,1772158232050,-1265.18903146,7.53e-05,2]
[406754413,1772158232059,-1235.07495132,7.53e-05,2]
[406754416,1772158232075,-30.11408014,7.53e-05,2]
[406754418,1772158232085,-1265.18903146,7.53e-05,2]
[406754420,1772158232094,-1265.18903146,7.53e-05,2]
[406754422,1772158232103,-1265.18903146,7.53e-05,2]
[406754423,1772158232112,-1265.18903146,7.53e-05,2]
[406754425,1772158232121,-1265.18903146,7.53e-05,2]
[406754427,1772158232131,-1265.18903146,7.53e-05,2]
[406754430,1772158232142,-1265.18903146,7.53e-05,2]
[406754432,1772158232152,-1265.18903146,7.53e-05,2]
[406754433,1772158232161,-1265.18903146,7.53e-05,2]
[406754435,1772158232169,-1265.18903146,7.53e-05,2]
[406754437,1772158232178,-1265.18903146,7.53e-05,2]
[406754440,1772158232188,-1265.18903146,7.53e-05,2]
[406754441,1772158232197,-723.94077041,7.53e-05,2]
[406754445,1772158232222,-541.24826105,7.53e-05,2]
[406754447,1772158232231,-1265.18903146,7.53e-05,2]
[406754449,1772158232241,-1265.18903146,7.53e-05,2]
[406754451,1772158232250,-1265.18903146,7.53e-05,2]
[406754453,1772158232260,-1265.18903146,7.53e-05,2]
[406754456,1772158232269,-1265.18903146,7.53e-05,2]
[406754458,1772158232278,-1265.18903146,7.53e-05,2]
[406754460,1772158232288,-1265.18903146,7.53e-05,2]
[406754462,1772158232297,-1265.18903146,7.53e-05,2]
[406754464,1772158232305,-1265.18903146,7.53e-05,2]
[406754465,1772158232314,-1265.18903146,7.53e-05,2]
[406754468,1772158232324,-1265.18903146,7.53e-05,2]
[406754470,1772158232332,-1255.45680814,7.53e-05,2]
[406754471,1772158232342,-1255.45680814,7.53e-05,2]
[406754474,1772158232351,-1255.45680814,7.53e-05,2]
[406754475,1772158232360,-731.78094639,7.53e-05,2]
[406754478,1772158232372,-523.67586175,7.53e-05,2]
[406754480,1772158232382,-1255.45680814,7.53e-05,2]
[406754482,1772158232391,-1255.45680814,7.53e-05,2]
[406754484,1772158232401,-1255.45680814,7.53e-05,2]
[406754486,1772158232410,-1255.45680814,7.53e-05,2]
[406754488,1772158232418,-1255.45680814,7.53e-05,2]
[406754490,1772158232428,-1255.45680814,7.53e-05,2]
[406754492,1772158232437,-1255.45680814,7.53e-05,2]
[406754494,1772158232447,-1255.45680814,7.53e-05,2]
[406754496,1772158232455,-1255.45680814,7.53e-05,2]
[406754498,1772158232467,-1255.45680814,7.53e-05,2]
[406754500,1772158232479,-1255.45680814,7.53e-05,2]
[406754502,1772158232488,-1255.45680814,7.53e-05,2]
[406754504,1772158232498,-1255.45680814,7.53e-05,2]
[406754506,1772158232509,-1255.45680814,7.53e-05,2]
[406754508,1772158232518,-1255.45680814,7.53e-05,2]
[406754510,1772158232528,-1255.45680814,7.53e-05,2]
[406754512,1772158232538,-1255.45680814,7.53e-05,2]
[406754514,1772158232551,-1255.45680814,7.53e-05,2]
[406754516,1772158232560,-1255.45680814,7.53e-05,2]
[406754518,1772158232569,-1255.45680814,7.53e-05,2]
[406754520,1772158232578,-1255.45680814,7.53e-05,2]
[406754522,1772158232587,-1255.45680814,7.53e-05,2]
[406754524,1772158232597,-1255.45680814,7.53e-05,2]
[406754526,1772158232606,-1255.45680814,7.53e-05,2]
[406754528,1772158232615,-1255.45680814,7.53e-05,2]
[406754530,1772158232624,-1255.45680814,7.53e-05,2]
[406754532,1772158232633,-1255.45680814,7.53e-05,2]
[406754534,1772158232642,-1255.45680814,7.53e-05,2]
[406754536,1772158232651,-1255.45680814,7.53e-05,2]
[406754538,1772158232661,-1255.45680814,7.53e-05,2]
[406754540,1772158232675,-1255.45680814,7.53e-05,2]
[406754542,1772158232684,-1255.45680817,7.53e-05,2]
[406754544,1772158232692,-1255.45680817,7.53e-05,2]
[406754546,1772158232702,-1255.45680817,7.53e-05,2]
[406754548,1772158232711,-268.72857848,7.53e-05,2]
[406754641,1772158237571,-986.72822968,7.53e-05,2]
[406754642,1772158237581,-8375.9264026,7.531e-05,2]
[406754643,1772158237593,-14211.4426526,7.531e-05,2]
[406754644,1772158237623,-1977412.6309448,7.531e-05,2]
[406754645,1772158237783,-1281.61071948,7.612e-05,2]
[406754646,1772158237853,-2966.52,7.631e-05,2]
[406754647,1772158237863,-166.66,7.697e-05,2]
[406754648,1772158237873,-485.0,7.823e-05,2]
[406754649,1772158237882,-2966.52,7.825e-05,2]
[406754650,1772158237892,-440.0,7.838e-05,2]
[406754651,1772158237902,-454.79640327,7.854e-05,2]
[406754652,1772158237912,-166.66,7.935e-05,2]
[406754653,1772158237921,-536.0,7.944e-05,2]
[406754654,1772158237931,-947.57827244,7.959e-05,2]
[406754655,1772158237940,-1414.0,7.96e-05,2]
[406754656,1772158237950,-880.0,7.976e-05,2]
[406754657,1772158237961,-12338.11537087,8e-05,2]
[406754658,1772158237971,-2966.52,8.02e-05,2]
[406754659,1772158237981,-204.0,8.11e-05,2]
[406754660,1772158237990,-2351.0,8.11e-05,2]
[406754661,1772158237999,-166.66,8.174e-05,2]
[406754662,1772158238009,-92246.0,8.192e-05,2]
[406754663,1772158238019,-431.67660214,8.2e-05,2]
[406754664,1772158238028,-413.8171434,8.2e-05,2]
[406754665,1772158238037,-2966.52,8.214e-05,2]
[406754666,1772158238047,-500.0,8.214e-05,2]
[406754667,1772158238057,-330.263488,8.219e-05,2]
[406754668,1772158238066,-150.0,8.219e-05,2]
[406754669,1772158238077,-189.779429,8.219e-05,2]
[406754670,1772158238086,-229.558859,8.219e-05,2]
[406754671,1772158238095,-269.338288,8.219e-05,2]
[406754672,1772158238104,-309.117718,8.219e-05,2]
[406754674,1772158238113,-348.897147,8.219e-05,2]
[406754676,1772158238123,-388.676577,8.219e-05,2]
[406754677,1772158238131,-428.456006,8.219e-05,2]
[406754678,1772158238141,-468.235436,8.219e-05,2]
[406754679,1772158238150,-508.014866,8.219e-05,2]
[406754680,1772158238160,-150.0,8.219e-05,2]
[406754681,1772158238170,-451.878081,8.219e-05,2]
[406754682,1772158238179,-753.756163,8.219e-05,2]
[406754683,1772158238189,-1055.634245,8.219e-05,2]
[406754684,1772158238198,-1357.512327,8.219e-05,2]
[406754685,1772158238208,-1659.390409,8.219e-05,2]
[406754686,1772158238217,-1961.268491,8.219e-05,2]
[406754687,1772158238227,-2263.146573,8.219e-05,2]
[406754688,1772158238236,-2565.024655,8.219e-05,2]
[406754689,1772158238247,-2866.902737,8.219e-05,2]
[406754690,1772158238256,-500.0,8.219e-05,2]
[406754691,1772158238265,-1505.58790746,8.228e-05,2]
[406754692,1772158238274,-44822.6267,8.229e-05,2]
[406754693,1772158238283,-2899.7621,8.229e-05,2]
[406754694,1772158238292,-2797.59560764,8.265e-05,2]
[406754695,1772158238302,-255.0,8.27e-05,2]
[406754696,1772158238313,-161.85,8.281e-05,2]
[406754697,1772158238323,-1233.18,8.285e-05,2]
[406754698,1772158238333,-484.53763989,8.328e-05,2]
[406754699,1772158238341,-226.87579475,8.328e-05,2]
[406754700,1772158238350,-643.47768148,8.328e-05,2]
[406754701,1772158238359,-55827.0,8.329e-05,2]
[406754702,1772158238368,-4112.592912,8.392e-05,2]
[406754703,1772158238378,-18855.642109,8.392e-05,2]
[406754704,1772158238388,-166.66,8.412e-05,2]
[406754705,1772158238397,-500.0,8.493e-05,2]
[406754706,1772158238405,-413.91179415,8.767e-05,2]
[406754707,1772158238414,-250.24290196,8.822e-05,2]
[406754708,1772158238423,-369.0,9.052e-05,2]
[406754709,1772158238433,-1086.0,9.07e-05,2]
[406754710,1772158238442,-433.0,9.097e-05,2]
[406754711,1772158238451,-1233.18,9.113e-05,2]
[406754712,1772158238460,-319.0,9.496e-05,2]
[406754713,1772158238471,-275.0,9.515e-05,2]
[406754714,1772158238481,-1975.0,9.534e-05,2]
[406754715,1772158238490,-1628.0,9.553e-05,2]
[406754716,1772158238499,-412.82936,9.848e-05,2]
[406754717,1772158238509,-1233.18,9.942e-05,2]
[406754718,1772158238519,-113312.95119726,9.95e-05,2]
[406754719,1772158238529,-1500.0,0.0001,2]
[406754720,1772158238539,-22880.53451892,0.0001,2]
[406754721,1772158238549,-151.0,0.0001,2]
[406754722,1772158238558,-151.0,0.0001,2]
[406754723,1772158238567,-151.0,0.0001,2]
[406754724,1772158238577,-151.0,0.0001,2]
[406754725,1772158238587,-151.0,0.0001,2]
[406754726,1772158238596,-151.0,0.0001,2]
[406754727,1772158238605,-151.0,0.0001,2]
[406754728,1772158238615,-151.0,0.0001,2]
[406754729,1772158238624,-151.0,0.0001,2]
[406754730,1772158238634,-151.0,0.0001,2]
[406754731,1772158238644,-151.0,0.0001,2]
[406754732,1772158238653,-151.0,0.0001,2]
[406754733,1772158238662,-151.0,0.0001,2]
[406754734,1772158238671,-151.0,0.0001,2]
[406754735,1772158238681,-151.0,0.0001,2]
[406754736,1772158238692,-151.0,0.0001,2]
[406754737,1772158238701,-151.0,0.0001,2]
[406754738,1772158238710,-151.0,0.0001,2]
[406754739,1772158238720,-151.0,0.0001,2]
[406754740,1772158238729,-151.0,0.0001,2]
[406754741,1772158238738,-151.0,0.0001,2]
[406754742,1772158238749,-151.0,0.0001,2]
[406754743,1772158238759,-151.0,0.0001,2]
[406754744,1772158238769,-151.0,0.0001,2]
[406754745,1772158238779,-151.0,0.0001,2]
[406754746,1772158238790,-151.0,0.0001,2]
[406754747,1772158238800,-151.0,0.0001,2]
[406754748,1772158238809,-151.0,0.0001,2]
[406754749,1772158238819,-151.0,0.0001,2]
[406754750,1772158238828,-151.0,0.0001,2]
[406754751,1772158238837,-151.0,0.0001,2]
[406754752,1772158238846,-151.0,0.0001,2]
[406754753,1772158238856,-151.0,0.0001,2]
[406754754,1772158238865,-151.0,0.0001,2]
[406754755,1772158238874,-217.82931206,0.0001,2]
[406754756,1772158238884,-549.0,0.00010007,2]
[406754757,1772158238893,-830.45295709,0.000102,2]
[406754758,1772158238902,-500.0,0.000103,2]
[406754759,1772158238918,-500.0,0.000103,2]
[406754760,1772158238927,-500.0,0.000103,2]
[406754761,1772158238936,-874.11423967,0.000103,2]
[406754762,1772158238945,-500.0,0.000103,2]
[406754763,1772158238955,-500.0,0.000103,2]
[406754764,1772158238965,-500.0,0.000103,2]
[406754765,1772158238974,-500.0,0.000103,2]
[406754766,1772158238984,-500.0,0.000103,2]
[406754767,1772158238993,-500.0,0.000103,2]
[406754768,1772158239003,-500.0,0.000103,2]
[406754769,1772158239012,-500.0,0.000103,2]
[406754770,1772158239021,-500.0,0.000103,2]
[406754771,1772158239031,-500.0,0.000103,2]
[406754772,1772158239041,-500.0,0.000103,2]
[406754773,1772158239050,-985.47485713,0.000103,2]
[406754774,1772158239061,-500.0,0.000103,2]
[406754775,1772158239070,-500.0,0.000103,2]
[406754776,1772158239081,-500.0,0.000103,2]
[406754777,1772158239090,-860.86736991,0.000103,2]
[406754778,1772158239100,-500.0,0.000103,2]
[406754779,1772158239109,-500.0,0.000103,2]
[406754780,1772158239119,-500.0,0.000103,2]
[406754781,1772158239128,-500.0,0.000103,2]
[406754782,1772158239137,-500.0,0.000103,2]
[406754783,1772158239146,-500.0,0.000103,2]
[406754784,1772158239156,-500.0,0.000103,2]
[406754785,1772158239165,-500.0,0.000103,2]
[406754786,1772158239175,-500.0,0.000103,2]
[406754787,1772158239185,-500.0,0.000103,2]
[406754788,1772158239194,-563.07260655,0.000103,2]
[406754789,1772158239203,-500.0,0.000103,2]
[406754790,1772158239212,-500.0,0.000103,2]
[406754791,1772158239222,-700.0,0.000103,2]
[406754792,1772158239231,-500.0,0.000103,2]
[406754793,1772158239241,-500.0,0.000103,2]
[406754794,1772158239250,-504.25316934,0.000103,2]
[406754795,1772158239261,-500.0,0.000103,2]
[406754796,1772158239271,-501.78946227,0.000103,2]
[406754797,1772158239281,-650.4413196,0.000103,2]
[406754798,1772158239290,-500.0,0.000103,2]
[406754799,1772158239300,-500.0,0.000103,2]
[406754801,1772158239309,-900.0,0.000103,2]
[406754803,1772158239319,-500.0,0.000103,2]
[406754805,1772158239328,-900.0,0.000103,2]
[406754806,1772158239337,-500.0,0.000103,2]
[406754807,1772158239347,-900.0,0.000103,2]
[406754808,1772158239357,-700.0,0.000103,2]
[406754809,1772158239366,-500.0,0.000103,2]
[406754810,1772158239375,-900.0,0.000103,2]
[406754811,1772158239385,-700.0,0.000103,2]
[406754812,1772158239395,-500.0,0.000103,2]
[406754813,1772158239404,-900.0,0.000103,2]
[406754814,1772158239414,-700.0,0.000103,2]
[406754815,1772158239423,-500.0,0.000103,2]
[406754816,1772158239433,-700.0,0.000103,2]
[406754817,1772158239442,-900.0,0.000103,2]
[406754818,1772158239451,-500.0,0.000103,2]
[406754819,1772158239461,-900.0,0.000103,2]
[406754820,1772158239472,-700.0,0.000103,2]
[406754821,1772158239481,-500.0,0.000103,2]
[406754822,1772158239492,-700.0,0.000103,2]
[406754823,1772158239501,-900.0,0.000103,2]
[406754824,1772158239512,-514.34634741,0.000103,2]
[406754825,1772158239521,-501.24297214,0.000103,2]
[406754826,1772158239531,-700.0,0.000103,2]
[406754827,1772158239541,-900.0,0.000103,2]
[406754828,1772158239550,-700.0,0.000103,2]
[406754829,1772158239559,-900.0,0.000103,2]
[406754830,1772158239568,-500.0,0.000103,2]
[406754831,1772158239578,-900.0,0.000103,2]
[406754832,1772158239587,-500.0,0.000103,2]
[406754833,1772158239596,-900.0,0.000103,2]
[406754834,1772158239607,-500.0,0.000103,2]
[406754835,1772158239616,-600.0,0.000103,2]
[406754836,1772158239625,-900.0,0.000103,2]
[406754837,1772158239635,-513.64956221,0.000103,2]
[406754838,1772158239644,-600.0,0.000103,2]
[406754839,1772158239654,-1333.38213519,0.000103,2]
[406754840,1772158239663,-600.0,0.000103,2]
[406754841,1772158239672,-600.0,0.000103,2]
[406754842,1772158239682,-501.28875242,0.000103,2]
[406754843,1772158239691,-500.0,0.000103,2]
[406754844,1772158239700,-600.0,0.000103,2]
[406754845,1772158239710,-500.0,0.000103,2]
[406754846,1772158239719,-600.0,0.000103,2]
[406754847,1772158239728,-600.0,0.000103,2]
[406754848,1772158239737,-500.0,0.000103,2]
[406754849,1772158239747,-600.0,0.000103,2]
[406754850,1772158239756,-500.0,0.000103,2]
[406754851,1772158239766,-600.0,0.000103,2]
[406754852,1772158239775,-500.0,0.000103,2]
[406754853,1772158239785,-600.0,0.000103,2]
[406754854,1772158239794,-500.0,0.000103,2]
[406754855,1772158239803,-500.0,0.000103,2]
[406754856,1772158239812,-600.0,0.000103,2]
[406754857,1772158239821,-500.0,0.000103,2]
[406754858,1772158239831,-600.0,0.000103,2]
[406754859,1772158239841,-500.0,0.000103,2]
[406754860,1772158239851,-509.02051912,0.000103,2]
[406754861,1772158239861,-782.29195917,0.000103,2]
[406754862,1772158239871,-500.0,0.000103,2]
[406754863,1772158239880,-503.2038976,0.000103,2]
[406754864,1772158239890,-788.96299913,0.000103,2]
[406754865,1772158239900,-700.0,0.000103,2]
[406754866,1772158239909,-500.0,0.000103,2]
[406754867,1772158239919,-504.87317304,0.000103,2]
[406754868,1772158239928,-500.0,0.000103,2]
[406754869,1772158239938,-500.0,0.000103,2]
[406754870,1772158239948,-500.0,0.000103,2]
[406754871,1772158239957,-516.41836887,0.000103,2]
[406754872,1772158239967,-700.0,0.000103,2]
[406754873,1772158239976,-700.0,0.000103,2]
[406754874,1772158239986,-700.0,0.000103,2]
[406754875,1772158239995,-700.0,0.000103,2]
[406754876,1772158240004,-943.75451416,0.000103,2]
[406754877,1772158240014,-500.0,0.000103,2]
[406754878,1772158240023,-871.31934016,0.000103,2]
[406754879,1772158240033,-500.0,0.000103,2]
[406754880,1772158240042,-500.0,0.000103,2]
[406754881,1772158240051,-608.91216202,0.000103,2]
[406754882,1772158240062,-500.0,0.000103,2]
[406754883,1772158240071,-500.0,0.000103,2]
[406754884,1772158240082,-500.0,0.000103,2]
[406754885,1772158240091,-900.0,0.000103,2]
[406754886,1772158240101,-500.0,0.000103,2]
[406754887,1772158240110,-500.0,0.000103,2]
[406754888,1772158240119,-500.0,0.000103,2]
[406754889,1772158240128,-500.0,0.000103,2]
[406754890,1772158240138,-500.0,0.000103,2]
[406754891,1772158240147,-500.0,0.000103,2]
[406754892,1772158240156,-798.9187182,0.000103,2]
[406754893,1772158240166,-510.5569704,0.000103,2]
[406754894,1772158240176,-500.0,0.000103,2]
[406754895,1772158240186,-812.0,0.000103,2]
[406754896,1772158240196,-500.0,0.000103,2]
[406754897,1772158240205,-500.0,0.000103,2]
[406754898,1772158240214,-500.0,0.000103,2]
[406754899,1772158240223,-797.24899589,0.000103,2]
[406754900,1772158240233,-500.0,0.000103,2]
[406754901,1772158240242,-15175.97359162,0.00010375,2]
[406754902,1772158240252,-296.61399423,0.00010375,2]